bitfinex/quotes_SOLUSD_20250604
["timestamp","ask_amount","ask_price","bid_price","bid_amount"]
[1749070226603,24.96868975,154.11,154.1,41.86]
[1749070226902,20.19151841,154.11,154.1,41.86]
[1749070227195,24.9687478,154.11,154.1,41.86]
[1749070227378,20.19151841,154.11,154.1,41.86]
[1749070227823,20.19151841,154.12,154.1,41.86]
[1749070229305,168.29151841,154.14,154.1,88.05151841]
[1749070229505,168.29151841,154.14,154.13,26.0]
[1749070229699,173.07161568,154.14,154.13,67.74]
[1749070229868,168.29151841,154.14,154.13,67.74]
[1749070230072,173.07196733,154.14,154.13,67.74]
[1749070230689,186.94116727,154.14,154.13,41.72]
[1749070231007,18.64964886,154.13,154.09,11.94]
[1749070231188,20.19151841,154.1,154.09,11.94]
[1749070231370,20.19151841,154.1,154.09,53.64]
[1749070233203,20.19151841,154.1,154.09,53.6]
[1749070233409,20.19151841,154.11,154.09,53.6]
[1749070233810,22.02701327,154.15,154.09,53.6]
[1749070233811,20.19151841,154.1,154.09,53.6]
[1749070234178,20.19151841,154.1,154.09,11.94]
[1749070234689,20.19151841,154.1,154.09,53.58]
[1749070236113,20.19151841,154.1,154.09,11.94]
[1749070236303,20.19151841,154.1,154.09,53.54]
[1749070238305,20.19151841,154.11,154.09,53.54]
[1749070239913,168.29151841,154.12,154.09,53.54]
[1749070240203,20.19151841,154.11,154.09,53.54]
[1749070240413,20.19151841,154.1,154.09,53.54]
[1749070241611,20.19151841,154.11,154.09,53.54]
[1749070244183,20.19151841,154.1,154.09,53.54]
[1749070245520,148.1,154.09,154.02,1.6309]
[1749070245715,168.29151841,154.08,154.06,11.52]
[1749070245919,20.19151841,154.07,154.06,53.16]
[1749070246214,20.19151841,154.07,154.06,53.2]
[1749070246419,43.61836644,154.07,154.06,53.2]
[1749070246632,38.84116727,154.07,154.06,53.2]
[1749070246807,43.61786033,154.07,154.06,53.2]
[1749070247120,43.61807881,154.07,154.06,53.2]
[1749070247299,43.61807881,154.07,154.06,53.16]
[1749070247508,45.47388508,154.07,154.06,11.52]
[1749070247698,166.89181043,154.06,154.03,78.96]
[1749070247902,38.84116727,154.04,154.03,37.32]
[1749070248227,43.75927735,154.04,154.03,78.96]
[1749070248391,38.98332884,154.04,154.03,41.64]
[1749070248595,43.7591876,154.04,154.03,41.64]
[1749070248925,43.75923228,154.04,154.03,41.64]
[1749070249112,43.7592115,154.04,154.02,11.52]
[1749070249320,148.1,154.06,153.98,26.0]
[1749070249321,0.14216157,154.02,153.99,41.62]
[1749070249493,20.19151841,154.0,153.99,41.62]
[1749070250198,148.1,154.05,153.99,41.62]
[1749070250409,20.19151841,154.03,153.99,41.62]
[1749070250612,4.78425844,154.02,153.99,41.62]
[1749070250806,20.19151841,154.02,153.99,41.62]
[1749070251028,20.19151841,154.02,154.01,26.0]
[1749070251323,20.19151841,154.02,154.01,41.62]
[1749070251740,24.97667072,154.02,154.01,41.62]
[1749070251922,20.19151841,154.02,154.01,41.62]
[1749070252439,20.19151841,154.02,153.98,37.52]
[1749070252639,20.19151841,154.0,153.99,41.58]
[1749070253805,20.19151841,154.0,153.98,37.52]
[1749070253806,38.84116727,154.0,153.95,8.06934044]
[1749070254047,18.64964886,154.0,153.98,11.52]
[1749070254228,18.64964886,154.0,153.99,41.54]
[1749070255136,59.03268568,154.0,153.99,41.54]
[1749070255645,38.84116727,154.0,153.99,41.54]
[1749070255949,59.03268568,154.0,153.99,41.52]
[1749070257357,59.03268568,154.0,153.99,41.48]
[1749070258431,59.03268568,154.0,153.99,41.46]
[1749070258755,59.03268568,154.0,153.98,11.52]
[1749070258756,18.64964886,153.99,153.98,11.52]
[1749070258943,38.84116727,153.99,153.98,52.98]
[1749070259667,20.19151841,153.99,153.98,52.98]
[1749070264959,38.84116727,153.99,153.98,52.98]
[1749070265721,38.98332884,153.99,153.98,52.92]
[1749070266062,18.64964886,153.99,153.98,52.92]
[1749070266344,38.84116727,153.99,153.98,52.92]
[1749070267072,38.84116727,153.99,153.98,11.52]
[1749070267358,18.64964886,154.02,153.98,52.9]
[1749070267548,20.19151841,153.99,153.98,52.9]
[1749070268267,43.60435974,153.99,153.98,52.9]
[1749070268436,43.74616887,153.99,153.98,53.0]
[1749070268756,38.98332884,153.99,153.98,53.0]
[1749070268951,38.98332884,153.99,153.98,11.52]
[1749070269153,38.98332884,153.99,153.98,53.0]
[1749070269860,38.98332884,153.99,153.98,52.98]
[1749070270041,43.77826188,153.99,153.98,52.98]
[1749070270558,43.77826188,153.99,153.92,8.33333333]
[1749070270559,18.79181043,153.96,153.92,19.65333333]
[1749070270735,38.84116727,153.93,153.92,19.65333333]
[1749070270936,43.63634725,153.93,153.92,61.09333333]
[1749070271163,24.98669839,153.93,153.92,61.09333333]
[1749070271738,20.19151841,153.93,153.92,61.09333333]
[1749070272168,39.12549041,153.93,153.92,19.65333333]
[1749070272472,43.62375078,153.93,153.92,61.07333333]
[1749070272834,38.84116727,153.93,153.92,61.07333333]
[1749070273035,171.67049396,153.95,153.92,61.07333333]
[1749070273260,148.1,153.95,153.94,26.0]
[1749070273478,152.87720294,153.95,153.94,67.42]
[1749070273681,148.1,153.95,153.94,67.42]
[1749070275055,20.19151841,153.98,153.94,87.61151841]
[1749070275247,20.19151841,153.99,153.95,20.19151841]
[1749070275447,20.19151841,153.99,153.96,41.42]
[1749070275654,3.37787584,154.0,153.96,41.42]
[1749070275879,4.77964724,153.99,153.98,26.0]
[1749070276161,4.77964724,153.99,153.98,78.76]
[1749070276162,20.19151841,153.99,153.98,78.76]
[1749070277257,20.19151841,153.99,153.98,52.76]
[1749070280949,3.37758622,154.02,153.98,52.76]
[1749070281146,20.19151841,154.0,153.98,52.76]
[1749070281354,20.19151841,153.99,153.98,52.76]
[1749070282147,20.19151841,154.0,153.98,52.76]
[1749070282359,20.19151841,154.0,153.99,67.3]
[1749070285443,24.97543672,154.0,153.99,41.26]
[1749070285682,24.97556486,154.0,153.99,41.26]
[1749070285855,20.19151841,154.0,153.99,41.26]
[1749070286054,24.97535463,154.0,153.99,41.26]
[1749070286249,24.97499048,154.0,153.99,41.26]
[1749070286473,24.97498605,154.0,153.99,41.26]
[1749070286989,24.97503304,154.0,153.99,41.26]
[1749070287193,20.19151841,154.0,153.99,41.26]
[1749070287366,24.9739183,154.0,153.99,41.26]
[1749070287554,20.19151841,154.0,153.99,41.26]
[1749070288043,24.97270667,154.0,153.99,41.26]
[1749070288247,24.97270239,154.0,153.99,41.26]
[1749070289171,24.97290025,154.0,153.99,41.26]
[1749070289552,43.62254911,154.0,153.99,41.26]
[1749070289754,43.62245162,154.0,153.99,41.26]
[1749070290981,4.78128435,154.0,153.99,41.26]
[1749070291185,20.19151841,154.0,153.99,41.26]
[1749070291351,24.97320618,154.0,153.99,41.26]
[1749070291549,20.19151841,154.0,153.99,41.26]
[1749070292158,168.29151841,154.01,153.99,41.26]
[1749070296866,20.19151841,154.0,153.99,41.26]
[1749070297575,148.1,154.01,153.99,61.45151841]
[1749070297759,20.19151841,154.04,153.99,61.45151841]
[1749070298084,4.78860405,154.03,154.02,26.0]
[1749070298270,4.78860986,154.03,154.02,67.1]
[1749070298470,20.19151841,154.04,154.02,67.1]
[1749070303572,20.19151841,154.03,154.02,67.1]
[1749070305582,20.19151841,154.03,154.02,40.96]
[1749070306063,148.1,154.02,153.98,11.34]
[1749070306260,20.19151841,153.99,153.98,11.34]
[1749070306873,20.19151841,153.99,153.98,52.28]
[1749070307370,20.19151841,153.99,153.98,11.34]
[1749070307579,20.19151841,153.99,153.98,52.28]
[1749070309288,18.64964886,154.0,153.98,52.28]
[1749070309599,148.1,154.01,153.98,52.28]
[1749070309600,20.19151841,153.99,153.98,52.28]
[1749070311972,20.19151841,154.0,153.98,52.28]
[1749070314685,168.29151841,154.01,153.98,52.28]
[1749070314882,168.29151841,154.01,154.0,26.0]
[1749070315226,148.1,154.01,154.0,66.86]
[1749070316293,18.64964886,154.04,154.0,66.86]
[1749070316294,20.19151841,154.04,154.0,66.86]
[1749070316470,20.19151841,154.04,154.0,87.05151841]
[1749070316974,20.19151841,154.04,154.0,66.86]
[1749070317489,148.1,154.05,154.0,66.86]
[1749070317797,24.98490088,154.04,154.0,87.05151841]
[1749070317997,148.1,154.05,154.04,26.0]
[1749070318209,4.79369434,154.05,154.04,98.25151841]
[1749070318492,4.79536,154.08,154.04,98.25151841]
[1749070318700,168.29151841,154.09,154.04,98.25151841]
[1749070319290,148.1,154.09,154.08,26.0]
[1749070319478,20.19151841,154.12,154.08,87.07151841]
[1749070319680,4.79578694,154.11,154.08,87.07151841]
[1749070319879,18.64964886,154.14,154.08,87.07151841]
[1749070319880,20.19151841,154.13,154.08,87.07151841]
[1749070320105,4.79618776,154.12,154.1,46.19151841]
[1749070320308,20.19151841,154.12,154.11,51.86]
[1749070320481,24.98758546,154.12,154.11,51.86]
[1749070320678,24.9872766,154.12,154.08,26.0]
[1749070320878,20.19151841,154.1,154.09,26.0]
[1749070321085,20.19151841,154.1,154.09,77.84]
[1749070321493,20.19151841,154.1,154.09,26.0]
[1749070321699,20.19151841,154.1,154.09,77.82]
[1749070321891,20.19151841,154.1,154.09,26.0]
[1749070322096,20.19151841,154.11,154.09,77.82]
[1749070322410,20.19151841,154.11,154.1,51.82]
[1749070323889,20.19151841,154.11,154.1,51.8]
[1749070324423,3.37707819,154.14,154.1,51.78]
[1749070324590,3.37707819,154.14,154.12,26.0]
[1749070324591,20.19151841,154.13,154.12,26.0]
[1749070324909,20.19151841,154.13,154.12,66.8]
[1749070327011,148.1,154.15,154.12,66.8]
[1749070327182,168.29151841,154.15,154.12,66.8]
[1749070327383,148.1,154.15,154.12,86.99151841]
[1749070328609,20.19151841,154.18,154.16,26.0]
[1749070328916,18.64964886,154.2,154.17,51.9]
[1749070329112,20.19151841,154.18,154.17,51.9]
[1749070329500,3.3755756,154.21,154.17,51.9]
[1749070329826,20.19151841,154.18,154.17,51.9]
[1749070333300,3.3755756,154.21,154.17,51.9]
[1749070333301,20.19151841,154.2,154.19,26.0]
[1749070333506,20.19151841,154.2,154.19,66.86]
[1749070334935,20.19151841,154.21,154.19,66.86]
[1749070335500,168.29151841,154.22,154.19,66.86]
[1749070337499,148.1,154.22,154.19,66.86]
[1749070337714,148.1,154.22,154.19,87.05151841]
[1749070339027,20.19151841,154.24,154.19,87.05151841]
[1749070340329,20.19151841,154.23,154.19,87.05151841]
[1749070341309,22.02362945,154.27,154.19,66.86]
[1749070341310,20.19151841,154.22,154.19,66.86]
[1749070341915,22.02362945,154.27,154.19,66.86]
[1749070342099,20.19151841,154.23,154.19,66.86]
[1749070344128,148.1,154.26,154.23,26.0]
[1749070344315,168.29151841,154.26,154.24,77.66]
[1749070345212,148.1,154.26,154.24,77.66]
[1749070345424,168.29151841,154.26,154.24,77.66]
[1749070347435,20.19151841,154.26,154.24,77.66]
[1749070347803,148.1,154.31,154.24,77.66]
[1749070348018,148.1,154.31,154.24,97.85151841]
[1749070348019,20.19151841,154.28,154.24,97.85151841]
[1749070348408,151.47300065,154.31,154.25,20.19151841]
[1749070348737,20.19151841,154.3,154.27,26.0]
[1749070348916,20.19151841,154.3,154.28,40.66]
[1749070349527,148.1,154.31,154.28,40.66]
[1749070349528,168.29151841,154.31,154.28,40.66]
[1749070349832,20.19151841,154.31,154.28,40.66]
[1749070351438,4.89132641,154.34,154.28,40.66]
[1749070351639,20.19151841,154.31,154.28,40.66]
[1749070353753,4.89132641,154.34,154.28,40.66]
[1749070353754,4.89132641,154.34,154.3,26.0]
[1749070353952,20.19151841,154.35,154.31,77.42]
[1749070355032,20.19151841,154.35,154.31,97.61151841]
[1749070355353,20.19151841,154.36,154.31,97.61151841]
[1749070355540,1.6539,154.38,154.31,97.61151841]
[1749070355541,20.19151841,154.37,154.32,20.33367998]
[1749070355741,20.19151841,154.38,154.33,20.19151841]
[1749070355953,20.19151841,154.38,154.35,26.0]
[1749070358652,1.6539,154.42,154.35,46.19151841]
[1749070358858,154.1839,154.45,154.36,20.33367998]
[1749070359079,154.1839,154.45,154.4,26.0]
[1749070359080,20.19151841,154.43,154.4,26.0]
[1749070359379,20.19151841,154.43,154.41,40.5]
[1749070362847,20.19151841,154.43,154.4,26.0]
[1749070362848,24.9300007,154.42,154.4,10.84]
[1749070363153,24.92985762,154.41,154.4,51.3]
[1749070363473,20.19151841,154.41,154.4,51.3]
[1749070363761,24.9297874,154.41,154.4,51.3]
[1749070363927,20.19151841,154.41,154.4,51.3]
[1749070364559,24.92976238,154.41,154.4,51.3]
[1749070365348,24.92973863,154.41,154.4,51.3]
[1749070366285,24.93656701,154.41,154.4,51.3]
[1749070366446,20.19151841,154.41,154.4,51.3]
[1749070366651,24.93658228,154.41,154.4,51.3]
[1749070366862,20.19151841,154.41,154.4,51.3]
[1749070367042,24.93654311,154.41,154.4,51.3]
[1749070367240,4.7450247,154.41,154.4,51.3]
[1749070367467,24.93672947,154.41,154.4,51.3]
[1749070367643,24.93672947,154.41,154.4,51.22]
[1749070367837,20.19151841,154.41,154.4,51.22]
[1749070368153,24.93672504,154.41,154.4,10.84]
[1749070368338,24.93676745,154.41,154.4,10.84]
[1749070368542,24.93675609,154.41,154.4,10.84]
[1749070368963,20.19151841,154.41,154.4,10.84]
[1749070369559,24.94793029,154.41,154.4,10.84]
[1749070369770,20.19151841,154.41,154.4,10.84]
[1749070370065,24.9483148,154.41,154.4,10.84]
[1749070370238,24.94852786,154.41,154.4,51.18]
[1749070370566,20.19151841,154.41,154.4,51.18]
[1749070370763,24.94851025,154.41,154.4,51.18]
[1749070371138,20.19151841,154.41,154.4,51.18]
[1749070371339,24.94852797,154.41,154.4,51.18]
[1749070371642,24.94856551,154.41,154.4,51.18]
[1749070371979,24.94855721,154.41,154.4,51.18]
[1749070372468,24.94281111,154.41,154.4,51.18]
[1749070372661,24.94302635,154.41,154.4,51.18]
[1749070372865,24.94302718,154.41,154.4,51.18]
[1749070373055,20.19151841,154.41,154.4,51.18]
[1749070373563,24.94301211,154.41,154.4,51.18]
[1749070373742,20.19151841,154.41,154.4,51.18]
[1749070374139,4.75145351,154.41,154.4,51.18]
[1749070374339,20.19151841,154.41,154.4,51.18]
[1749070374947,24.94320352,154.41,154.4,51.18]
[1749070375454,24.94321403,154.41,154.4,51.18]
[1749070375653,20.19151841,154.41,154.4,51.18]
[1749070376343,18.64964886,154.44,154.4,51.18]
[1749070376548,151.47030795,154.45,154.4,51.18]
[1749070376549,20.19151841,154.42,154.4,51.18]
[1749070376749,4.75219154,154.44,154.4,51.18]
[1749070376969,4.75757887,154.43,154.42,26.0]
[1749070377145,20.19151841,154.43,154.42,66.34]
[1749070377971,20.19151841,154.43,154.42,40.34]
[1749070378163,20.19151841,154.43,154.4,36.84]
[1749070378468,20.19151841,154.41,154.4,36.84]
[1749070378671,20.19151841,154.41,154.4,51.2]
[1749070379777,4.75113947,154.45,154.4,51.2]
[1749070380076,20.19151841,154.41,154.4,51.2]
[1749070380662,20.19151841,154.41,154.4,10.84]
[1749070380851,20.19151841,154.41,154.4,51.18]
[1749070381251,19.21829514,154.46,154.4,51.18]
[1749070381455,18.64964886,154.44,154.4,51.18]
[1749070381670,20.19151841,154.41,154.4,51.18]
[1749070383277,20.19151841,154.42,154.4,51.18]
[1749070384870,4.98806806,154.47,154.41,26.0]
[1749070385071,20.19151841,154.45,154.41,26.0]
[1749070385259,20.19151841,154.44,154.41,26.0]
[1749070387656,20.19151841,154.43,154.42,26.0]
[1749070391365,24.97306913,154.43,154.42,26.0]
[1749070391671,20.19151841,154.43,154.42,26.0]
[1749070394373,24.98004235,154.43,154.42,26.0]
[1749070395081,20.19151841,154.43,154.42,26.0]
[1749070395391,24.98001204,154.43,154.42,26.0]
[1749070395582,24.9800103,154.43,154.42,26.0]
[1749070395790,24.97997255,154.43,154.42,26.0]
[1749070395985,20.19151841,154.43,154.42,26.0]
[1749070396785,24.98006785,154.43,154.42,26.0]
[1749070397103,20.19151841,154.43,154.42,26.0]
[1749070397679,24.99667026,154.43,154.42,26.0]
[1749070398278,24.9969551,154.43,154.42,26.0]
[1749070398492,20.19151841,154.43,154.42,26.0]
[1749070398688,24.99423478,154.43,154.42,26.0]
[1749070398874,20.19151841,154.43,154.42,26.0]
[1749070399075,24.99418862,154.43,154.42,26.0]
[1749070399314,20.19151841,154.43,154.42,26.0]
[1749070399476,24.99420749,154.43,154.42,26.0]
[1749070399817,24.99407984,154.43,154.42,26.0]
[1749070400305,24.99380186,154.43,154.42,26.0]
[1749070400494,24.99379374,154.43,154.42,26.0]
[1749070400692,24.99296702,154.43,154.42,26.0]
[1749070400889,20.19151841,154.45,154.42,26.0]
[1749070401071,20.19151841,154.45,154.43,40.32]
[1749070401275,4.80434562,154.44,154.43,40.32]
[1749070401968,4.80447571,154.44,154.43,40.32]
[1749070402474,20.19151841,154.47,154.45,26.0]
[1749070402696,20.19151841,154.47,154.46,51.02]
[1749070402897,24.99666184,154.47,154.46,51.02]
[1749070403077,24.99483801,154.47,154.46,51.02]
[1749070403486,24.99481618,154.47,154.46,51.02]
[1749070403801,20.19151841,154.47,154.46,51.02]
[1749070404215,24.99478688,154.47,154.46,51.02]
[1749070404425,24.99516839,154.47,154.46,51.02]
[1749070404708,24.99515693,154.47,154.46,51.02]
[1749070405817,24.99606656,154.47,154.46,51.02]
[1749070405984,24.99614735,154.47,154.46,51.02]
[1749070407193,24.99616635,154.47,154.46,51.02]
[1749070407386,20.19151841,154.47,154.46,51.02]
[1749070407582,24.9963176,154.47,154.46,51.02]
[1749070408011,24.99639378,154.47,154.46,51.02]
[1749070408593,24.99639378,154.47,154.46,10.7]
[1749070408594,43.64604264,154.47,154.46,10.7]
[1749070409289,38.84116727,154.47,154.46,10.7]
[1749070409487,47.34117605,154.47,154.46,10.7]
[1749070409817,47.34116087,154.47,154.46,10.7]
[1749070410024,47.34159147,154.47,154.46,10.7]
[1749070410921,47.34151155,154.47,154.46,10.7]
[1749070411226,47.34151155,154.47,154.42,10.68]
[1749070411227,18.64964886,154.45,154.42,10.68]
[1749070411425,20.19151841,154.43,154.41,10.68]
[1749070411635,20.19151841,154.42,154.41,51.0]
[1749070411929,24.99708829,154.42,154.41,51.0]
[1749070412130,24.99708829,154.42,154.41,10.68]
[1749070412131,43.64673715,154.42,154.41,10.68]
[1749070412292,67.53154045,154.42,154.41,10.68]
[1749070412733,74.14645188,154.42,154.38,10.68]
[1749070412950,20.19151841,154.39,154.38,50.98]
[1749070413243,43.78473628,154.39,154.38,10.68]
[1749070413419,45.36153784,154.39,154.38,10.68]
[1749070413729,45.36156035,154.39,154.38,10.68]
[1749070414337,40.56012884,154.39,154.38,10.68]
[1749070414490,45.36163915,154.39,154.38,10.68]
[1749070415198,45.35428814,154.39,154.38,10.68]
[1749070415412,45.35426949,154.39,154.38,10.68]
[1749070416001,40.56012884,154.39,154.38,10.68]
[1749070416210,45.35452953,154.39,154.38,10.68]
[1749070416395,45.21236272,154.39,154.38,10.68]
[1749070416589,40.41796727,154.39,154.38,10.68]
[1749070416791,43.63583081,154.39,154.38,10.68]
[1749070416991,38.84116727,154.39,154.38,10.68]
[1749070420311,43.77430282,154.39,154.38,10.68]
[1749070420512,0.14216157,154.38,154.37,37.24]
[1749070420814,0.14216157,154.38,154.36,10.68]
[1749070420815,18.79181043,154.37,154.36,10.68]
[1749070421117,38.98332884,154.37,154.36,10.68]
[1749070421990,38.84116727,154.37,154.36,10.68]
[1749070423015,20.19151841,154.37,154.36,10.68]
[1749070423590,148.1,154.38,154.36,10.68]
[1749070423892,148.1,154.38,154.29,6.47666157]
[1749070423893,18.64964886,154.36,154.31,10.68]
[1749070424116,40.38303682,154.32,154.31,51.0]
[1749070424316,40.38303682,154.32,154.31,10.68]
[1749070424317,59.03268568,154.32,154.31,10.68]
[1749070425224,59.03268568,154.32,154.31,51.0]
[1749070427307,59.17484725,154.32,154.31,10.68]
[1749070433535,59.17484725,154.32,154.17,6.2799]
[1749070433536,26.0,154.28,154.17,6.2799]
[1749070433703,20.19151841,154.24,154.19,11.18]
[1749070433907,20.19151841,154.2,154.19,11.18]
[1749070434104,18.64964886,154.23,154.19,11.18]
[1749070434334,20.19151841,154.2,154.19,11.18]
[1749070434537,20.19151841,154.2,154.19,52.42]
[1749070440019,0.14216157,154.24,154.19,11.18]
[1749070440315,148.1,154.23,154.2,41.2]
[1749070440528,20.19151841,154.21,154.2,41.2]
[1749070440731,20.19151841,154.21,154.19,11.18]
[1749070440930,20.19151841,154.21,154.2,41.18]
[1749070441625,20.19151841,154.21,154.19,11.18]
[1749070441824,20.19151841,154.21,154.2,41.16]
[1749070442749,148.1,154.23,154.2,41.16]
[1749070443049,20.19151841,154.21,154.2,41.16]
[1749070444250,20.19151841,154.21,154.2,41.12]
[1749070448931,148.1,154.23,154.2,41.12]
[1749070449130,148.1,154.23,154.21,20.19151841]
[1749070449347,20.19151841,154.25,154.22,41.06]
[1749070449660,148.1,154.32,154.25,26.0]
[1749070449829,20.19151841,154.3,154.26,72.43151841]
[1749070450340,20.19151841,154.29,154.26,52.24]
[1749070450754,3.37292626,154.31,154.26,52.24]
[1749070450960,20.19151841,154.29,154.26,52.24]
[1749070451136,20.19151841,154.3,154.26,72.43151841]
[1749070451329,20.19151841,154.3,154.26,52.24]
[1749070451528,20.19151841,154.3,154.26,72.43151841]
[1749070451731,3.37292626,154.31,154.26,72.43151841]
[1749070451732,20.19151841,154.29,154.26,52.24]
[1749070452353,20.19151841,154.3,154.26,72.43151841]
[1749070457645,20.19151841,154.29,154.26,52.24]
[1749070461173,148.1,154.3,154.26,52.24]
[1749070461353,20.19151841,154.29,154.26,52.24]
[1749070461777,20.19151841,154.29,154.27,40.9]
[1749070463451,148.1,154.3,154.27,61.09151841]
[1749070463860,148.1,154.3,154.29,20.19151841]
[1749070464083,148.1,154.3,154.29,61.05151841]
[1749070467060,168.29151841,154.34,154.29,61.05151841]
[1749070467253,168.29151841,154.34,154.3,20.19151841]
[1749070467453,168.29151841,154.34,154.31,40.82]
[1749070467781,168.29151841,154.34,154.32,11.0]
[1749070467965,168.29151841,154.34,154.33,40.82]
[1749070469651,186.94116727,154.34,154.33,40.82]
[1749070470681,186.94116727,154.34,154.32,51.78]
[1749070470883,20.19151841,154.33,154.32,51.78]
[1749070472393,23.56434603,154.33,154.32,51.78]
[1749070473261,20.19151841,154.33,154.32,51.78]
[1749070473482,168.29151841,154.34,154.32,51.78]
[1749070474382,20.19151841,154.33,154.32,51.78]
[1749070475783,148.1,154.34,154.32,51.78]
[1749070479784,20.19151841,154.33,154.32,11.0]
[1749070480091,20.19151841,154.33,154.32,51.64]
[1749070482697,168.29151841,154.34,154.32,51.64]
[1749070484199,20.19151841,154.33,154.32,51.64]
[1749070484417,20.19151841,154.33,154.32,51.6]
[1749070485096,38.84116727,154.33,154.32,11.0]
[1749070487093,3.37246302,154.34,154.32,11.0]
[1749070487283,3.37246302,154.34,154.33,40.56]
[1749070487284,23.56398143,154.34,154.33,40.56]
[1749070493615,3.37246302,154.34,154.33,40.56]
[1749070493911,28.36504659,154.34,154.33,40.56]
[1749070494086,23.56398143,154.34,154.33,40.56]
[1749070494286,28.36406216,154.34,154.33,40.56]
[1749070495280,28.36397165,154.34,154.33,40.56]
[1749070495476,28.36397408,154.34,154.33,40.56]
[1749070495675,28.36397628,154.34,154.33,51.32]
[1749070496209,28.36393626,154.34,154.33,51.32]
[1749070497207,28.36439467,154.34,154.33,51.32]
[1749070498283,28.36490878,154.34,154.33,51.32]
[1749070498507,23.56398143,154.34,154.33,51.32]
[1749070498706,28.36490878,154.34,154.33,51.32]
[1749070498911,28.36490203,154.34,154.33,51.32]
[1749070499121,3.37246302,154.34,154.33,51.32]
[1749070499323,23.56398143,154.34,154.33,51.32]
[1749070499489,28.36467695,154.34,154.33,51.32]
[1749070500002,28.36500578,154.34,154.33,51.32]
[1749070500526,28.3653972,154.34,154.33,51.32]
[1749070501007,3.37246302,154.34,154.33,51.32]
[1749070501210,28.3658183,154.34,154.33,51.32]
[1749070502212,20.19151841,154.36,154.33,51.32]
[1749070502392,4.8030973,154.35,154.33,51.32]
[1749070502582,20.19151841,154.36,154.33,51.32]
[1749070502931,4.80474144,154.35,154.33,51.32]
[1749070503108,20.19151841,154.36,154.33,51.32]
[1749070503486,4.80477637,154.35,154.33,51.32]
[1749070503687,20.19151841,154.36,154.33,51.32]
[1749070503988,20.19151841,154.35,154.33,51.32]
[1749070504888,4.80716825,154.34,154.33,51.32]
[1749070505594,20.19151841,154.35,154.33,51.32]
[1749070506518,24.99949237,154.34,154.33,51.32]
[1749070506726,24.99949237,154.34,154.33,10.76]
[1749070506930,43.64914123,154.34,154.33,10.76]
[1749070507118,47.3409167,154.34,154.33,10.76]
[1749070507301,47.34091521,154.34,154.33,10.76]
[1749070507496,42.53354706,154.34,154.33,10.76]
[1749070507898,166.74964886,154.33,154.18,20.0]
[1749070508209,18.64964886,154.31,154.29,10.76]
[1749070508402,171.55706949,154.3,154.29,10.76]
[1749070508601,23.45970571,154.3,154.29,10.76]
[1749070509009,27.42944914,154.3,154.29,10.76]
[1749070509216,27.42895022,154.3,154.29,10.76]
[1749070509529,0.28432314,154.29,154.25,48.02]
[1749070509827,20.19151841,154.26,154.25,88.4]
[1749070510828,38.84116727,154.26,154.25,48.02]
[1749070511000,43.64415601,154.26,154.25,48.02]
[1749070511201,43.64360154,154.26,154.25,48.02]
[1749070511401,43.64377214,154.26,154.25,48.02]
[1749070511602,43.92809528,154.26,154.25,48.02]
[1749070512214,43.91675706,154.26,154.25,48.02]
[1749070512607,43.91697727,154.26,154.25,48.02]
[1749070512809,39.12549041,154.26,154.25,48.02]
[1749070513128,20.19151841,154.26,154.25,48.02]
[1749070515134,20.19151841,154.26,154.25,88.42]
[1749070517509,148.1,154.26,154.25,88.42]
[1749070517811,6.5914,154.31,154.25,88.42]
[1749070517812,20.19151841,154.27,154.25,88.42]